Cogmind - Beta 16.1 @@@ ROGUE MODE // 2026.01.04 @ 23:28:41 Player: cptwinky Result: Destroyed 0b10! Performance ------------- Evolutions (9) 4500 Regions Visited (24) 4800 Robots Destroyed (489) 2445 Value Destroyed (26911) 26911 Prototype IDs (59) 1180 Alien Tech Used (1) 200 Bonus (32396) 32396 TOTAL SCORE: 72432 Bonus ------- High Alert Combat Kills 6087 Follower Combat Kills 2908 Awakened Behemoth Slayer 1000 Entered Garrisons 600 Network Hubs Disabled 200 Met Imprinter 300 Acquired ECA 300 Met Zhirov 300 Met R17 at Cetus 500 Met R17 at Research 2000 Scanned by Researcher 500 Met Sigix 2000 Recovered Sigix Corpse 4000 Escaped with Sigix 10000 Win 3000 Friendly Fire -1299 Cogmind --------- Core Integrity 1399/1600 Matter 230/300 Energy 516/530 System Corruption 12% Temperature Cool (-189) Movement Treading (160) Location Tau Ceti IV Orbit Parts ------- > --- POWER (3) -------- Light Quantum Reactor Light Quantum Reactor Improved Quantum Reactor > --- PROPULSION (6) --- Enhanced Armored Heavy Treads Advanced Heavy Siege Treads Faulty High-density Centrium Heavy Treads > --- UTILITY (13) ----- Advanced Cryofiber Web Advanced Cooling System High-capacity Storage Unit Triangulator Advanced Signal Interpreter Core Analyzer Quantum Capacitor Heavy Armor Plating Centrium Medium Armor Plating Graphene Brace Hacking Drone Bay (1/1) > --- WEAPON (3) ------- Compact HERF Cannon Heavy Linear Accelerator > --- INVENTORY (20) --- Armored Heavy Treads Advanced Energy Well (500) Matter Compressor (250) Advanced Sensor Array Compact HERF Cannon Compact HERF Cannon Enhanced Nova Cannon Enhanced Gamma Bomb Array Advanced Remote Datajack CR-A16's Behemoth Slayer Sigix Containment Pod Sigix Containment Pod Sigix Corpse Sigix Corpse Peak State ------------ > --- POWER ------------ Quantum Reactor Light Quantum Reactor Improved Quantum Reactor > --- PROPULSION ------- Armored Heavy Treads Centrium Heavy Treads Enhanced Armored Heavy Treads > --- UTILITY ---------- Advanced Cryofiber Web Advanced Heat Sink Advanced Heat Sink High-capacity Storage Unit Triangulator Advanced Signal Interpreter Core Analyzer Quantum Capacitor Centrium Medium Armor Plating Graphene Brace Experimental EM Shield Advanced Shield Generator > --- WEAPON ----------- EMDS Enhanced Nova Cannon > --- INVENTORY -------- High-density Centrium Heavy Treads Advanced Cooling System Advanced Energy Well Matter Compressor Makeshift Sensor Array Hacking Drone Bay Subatomic Replicator Compact HERF Cannon Compact HERF Cannon Compact HERF Cannon Heavy Linear Accelerator Enhanced Gamma Bomb Array Advanced Remote Datajack CR-A16's Behemoth Slayer Sigix Containment Pod Sigix Corpse Sigix Corpse [Rating: 207] Favorites ----------- Power Quantum Reactor Engine Angular Momentum Engine Power Core Reinforced Fission Core Reactor Quantum Reactor Propulsion Titanium Leg Treads Improved Heavy Treads Leg Titanium Leg Utility Core Analyzer Device Advanced Heat Sink Storage High-capacity Storage Unit Processor Core Analyzer Hackware Hacking Suite Protection Improved Medium Armor Plating Weapon Heavy Assault Cannon Energy Gun Beam Rifle Energy Cannon Heavy Phase Cannon Ballistic Gun Helical Railgun Ballistic Cannon Heavy Assault Cannon Launcher Heavy Missile Launcher Special Weapon Advanced Remote Datajack Impact Weapon Hammer Slashing Weapon Makeshift Sword Piercing Weapon CR-A16's Behemoth Slayer Special Melee Weapon Datajack Build | -11 -10 -10 -10 -9 -8 -8 -7 -7 -7 -7 -6 -6 -6 -5 -5 -4 -4 -4 -4 -4 -3 -2 -2 -1 ------- Run | Yrd Mat Min Exi Min Mat Gar Fac Low Low Zio Pro Fac Gar Fac Gar Fac Ext Cet Arc Hub Res Res Qua Acc Slots Evolved 18 | . . . . . 4 . 2 . . . . 2 . 2 . 2 . . . . 2 2 . 2 Power 2 | . . . . . . . . . . . . . . 1 . . . . . . . 1 . . Propulsion 4 | . . . . . 1 . 1 . . . . 1 . 1 . . . . . . . . . . Utility 11 | . . . . . 2 . 1 . . . . 1 . . . 2 . . . . 2 1 . 2 Weapon 1 | . . . . . 1 . . . . . . . . . . . . . . . . . . . Parts Attached 268 | 6 8 7 . 5 17 7 25 4 . 2 7 6 27 11 20 17 27 8 1 12 8 16 8 19 Power 41 | 1 1 1 . . 3 1 3 . . . 1 1 3 3 2 2 8 . . 3 . 4 2 2 Engine 13 | 1 1 1 . . 3 . 2 . . . . . 1 2 1 . 1 . . . . . . . Core 13 | . . . . . . 1 1 . . . 1 . 2 . 1 1 5 . . 1 . . . . Reactor 15 | . . . . . . . . . . . . 1 . 1 . 1 2 . . 2 . 4 2 2 Propulsion 66 | 2 2 3 . 2 6 2 5 1 . . 2 1 9 2 7 6 4 2 . 3 . 1 1 5 Treads 38 | 2 2 3 . 2 2 . . . . . . . . 2 3 6 4 2 . 3 . 1 1 5 Leg 28 | . . . . . 4 2 5 1 . . 2 1 9 . 4 . . . . . . . . . Wheel . | . . . . . . . . . . . . . . . . . . . . . . . . . Hover . | . . . . . . . . . . . . . . . . . . . . . . . . . Flight . | . . . . . . . . . . . . . . . . . . . . . . . . . Utility 92 | 1 2 . . 2 2 2 12 3 . 1 2 4 9 4 5 7 8 2 1 3 5 8 4 5 Device 42 | . 1 . . 1 1 1 3 1 . 1 1 1 2 2 3 6 4 . 1 1 3 5 1 3 Storage 5 | 1 1 . . . . . 1 . . . . 1 . . . . . . . . . . 1 . Processor 16 | . . . . . . . 4 . . . . 1 3 1 1 1 1 . . . 1 2 . 1 Hackware 4 | . . . . . . 1 1 . . . . . . 1 . . . . . . . . 1 . Protection 25 | . . . . 1 1 . 3 2 . . 1 1 4 . 1 . 3 2 . 2 1 1 1 1 Artifact . | . . . . . . . . . . . . . . . . . . . . . . . . . Weapon 69 | 2 3 3 . 1 6 2 5 . . 1 2 . 6 2 6 2 7 4 . 3 3 3 1 7 Energy Gun 8 | 1 1 3 . . . . . . . . . . . . 2 . . 1 . . . . . . Energy Cannon 21 | . . . . . . 1 . . . . 1 . 3 . 2 . 3 . . 1 3 2 1 4 Ballistic Gun 14 | 1 . . . 1 3 . . . . . . . 2 1 . . 2 2 . 2 . . . . Ballistic Cannon 8 | . . . . . 1 . 3 . . . . . . . . 1 1 1 . . . . . 1 Launcher 9 | . . . . . 1 1 2 . . . . . . 1 1 1 . . . . . 1 . 1 Special Weapon 1 | . . . . . . . . . . . . . . . . . . . . . . . . 1 Impact Weapon 2 | . 1 . . . . . . . . 1 . . . . . . . . . . . . . . Slashing Weapon 3 | . . . . . 1 . . . . . . . 1 . . . 1 . . . . . . . Piercing Weapon 2 | . . . . . . . . . . . 1 . . . 1 . . . . . . . . . Special Melee Weapon 1 | . 1 . . . . . . . . . . . . . . . . . . . . . . . Unidentified Prototypes 25 | . . . . . . . 1 . . 1 . . 6 2 . 1 1 4 . 2 2 2 . 3 Corrupted Parts 3 | . . . . . . . . . . . . . 1 . . . . . . . . 1 . 1 System Corruption 14 | . . . . . . . . . . . . . 4 . . . . . . . . 7 . 3 Parts Lost 93 | . 1 2 . 5 2 . 6 . . . . 1 18 . 13 12 18 . . 3 . 2 . 10 Power 15 | . . . . 1 1 . . . . . . 1 1 . 2 2 6 . . . . . . 1 Propulsion 25 | . . 2 . 2 1 . 1 . . . . . 8 . 4 3 3 . . 1 . . . . Utility 29 | . . . . 1 . . 3 . . . . . 4 . 4 5 3 . . 1 . 1 . 7 Weapon 24 | . 1 . . 1 . . 2 . . . . . 5 . 3 2 6 . . 1 . 1 . 2 Highest Loss Streak 10 | . 1 1 . 5 1 . 2 . . . . 1 9 . 9 10 8 . . 3 . 2 . 2 To Critical Strikes 2 | . . . . . . . . . . . . . 2 . . . . . . . . . . . Average Backups 15 | 3 12 12 12 13 14 14 13 14 15 15 14 15 18 19 17 14 16 17 18 17 19 18 17 13 Power . | . 1 . . . . . 1 . 1 1 . . 1 1 . . 1 . 1 1 1 . . . Propulsion 1 | 1 4 4 5 3 3 2 . . 1 1 1 . 1 . . 2 . 1 1 . . 1 . 1 Utility 8 | . 1 2 4 6 5 6 7 9 8 8 8 9 11 9 7 7 10 10 11 11 13 12 11 4 Weapon 3 | . 4 3 1 2 3 3 3 3 3 3 3 3 2 5 4 3 3 4 4 3 4 3 2 4 Tool/Special . | . . . . . . . . . . . . . . . . . . . . . . . . . Unused Backups 63 | . 3 9 1 9 6 2 4 3 2 1 . 1 . 3 1 2 3 4 . . 1 2 4 2 Power 9 | . . 1 . 1 1 1 1 1 . . . . . . . . 2 1 . . . . . . Propulsion 10 | . 3 . 1 2 2 1 . . . . . . . . 1 . . . . . . . . . Utility 32 | . . 6 . 4 2 . 3 2 2 1 . . . 3 . 1 . 1 . . 1 1 3 2 Weapon 10 | . . 2 . 2 1 . . . . . . 1 . . . . 1 2 . . . 1 . . Tool/Special 2 | . . . . . . . . . . . . . . . . 1 . . . . . . 1 . Average Slot Usage (%) 88 | . 93 100 100 85 95 92 98 92 92 92 92 92 90 94 92 67 79 84 83 82 80 78 78 75 Engine 4 | . 14 14 14 3 6 5 1 7 7 7 . . 1 10 5 3 2 . . . . . . . Core 2 | . . . . . . 3 5 . . . 6 1 4 . 1 . 6 10 10 9 . . . . Reactor 2 | . . . . . . . . . . . . 4 . . 2 4 1 . . . 9 12 13 12 Treads 10 | . 28 28 28 28 7 . . . . . . . . 5 6 16 20 16 15 15 19 17 17 14 Leg 14 | . . . . . 19 27 29 30 30 30 30 33 30 24 25 . . . . . . . . . Device 12 | . 8 14 14 7 17 9 6 5 6 . 6 5 3 3 11 20 16 21 20 19 19 15 18 26 Storage 6 | . 14 14 14 14 9 9 7 7 7 7 7 6 6 5 5 5 5 5 5 5 4 4 4 4 Processor 9 | . . . . . . . 10 15 15 15 15 19 20 17 11 11 6 10 10 10 9 10 10 7 Protection 5 | . . . . 7 9 9 6 8 8 15 8 6 8 2 3 . 6 5 5 5 8 7 4 5 Energy Gun 2 | . 12 9 28 19 1 . . . . . . . . . . 3 . . . . . . . . Energy Cannon 3 | . . . . . . 1 1 . . . 3 1 7 4 1 . 8 6 5 2 6 7 8 6 Ballistic Gun 3 | . 14 9 . 5 21 2 . . . . . . 1 11 8 . . 7 10 12 1 . . . Ballistic Cannon 3 | . . . . . . 7 13 7 7 7 7 6 1 . . 1 1 . . . . . . . Launcher 1 | . . . . . . 6 1 5 . . 3 4 . . 1 . . . . . . . . . Slashing Weapon 1 | . . . . . 1 1 4 1 6 2 . . 1 . . . . . . . . . . . Peak Build Rating 207 | 7 12 13 14 17 32 43 55 56 56 58 67 78 92 125 129 135 130 131 131 151 166 181 185 207 Average Rating 86 | 6 10 11 12 14 28 35 49 53 55 52 62 73 76 116 113 122 107 123 129 134 160 170 176 187 On Entrance 79 | . 7 12 10 14 17 31 43 51 53 53 54 63 74 92 125 124 132 109 131 131 146 161 167 182 Avg Prop Armor Cover (%) 7 | . . . . . 5 . . . . . . . . 9 8 10 . . . . . . . 3 Naked Turns . | . . . . . . . . . . . . . . . . . . . . . . . . . Heaviest Build 173 | 10 29 32 32 32 54 54 62 68 67 67 67 90 90 89 103 91 114 120 113 118 129 155 161 173 Greatest Support 235 | 40 46 46 43 43 66 51 73 76 76 76 84 112 112 138 225 225 204 230 230 235 214 214 202 220 Greatest Overweight (x) 2 | . . . . . 1 1 . . . . . . 2 . . . . . . . . . . 1 Average Overweight (x) . | . . . . . . . . . . . . . . . . . . . . . . . . . Largest Inventory Capacity 20 | 8 15 15 15 15 15 15 15 15 15 15 15 20 20 20 20 20 20 20 20 20 20 20 20 20 Average Capacity 17 | 7 14 15 15 15 15 15 15 15 15 15 15 17 20 20 20 20 20 20 20 20 20 20 20 20 Most Carried 20 | 7 15 15 15 15 15 15 15 15 15 15 15 18 20 20 20 20 20 20 20 20 20 20 20 20 Average Carried 16 | 4 13 13 12 14 14 14 14 14 14 14 14 15 18 19 17 19 18 19 20 19 19 19 19 18 Final Capacity 20 | 8 15 15 15 15 15 15 15 15 15 15 15 20 20 20 20 20 20 20 20 20 20 20 20 20 Final Carried 20 | 7 15 7 15 15 15 15 15 15 15 15 15 18 19 19 20 19 20 20 20 20 20 20 19 17 Class Distribution -------------------- 26% | Mutant 20% | Scavenger-Tank 15% | Scavenger-Gunner 12% | Scavenger-Mutant 6% | Scavenger-Skirmisher 5% | Commander-Mutant 3% | Derelict-Mutant 3% | Tank 3% | Skirmisher Dominant Class ---------------- Mutant | -10/Materials Mutant | -10/Mines Mutant | -10/Exiles Mutant | -9/Mines Scavenger-Tank | -8/Materials Scavenger-Tank | -8/Garrison Mutant | -7/Factory Skirmisher | -7/Lower Caves Derelict-Mutant | -7/Lower Caves Mutant | -7/Zion Scavenger-Skirmisher | -6/Proximity Caves Scavenger-Gunner | -6/Factory Scavenger-Mutant | -6/Garrison Scavenger-Gunner | -5/Factory Scavenger-Mutant | -5/Garrison Scavenger-Gunner | -4/Factory Commander-Mutant | -4/Extension Commander-Tank | -4/Cetus Scavenger-Tank | -4/Archives Scavenger-Tank | -4/Hub_04(d) Scavenger-Tank | -3/Research Scavenger-Tank | -2/Research Scavenger-Gunner | -2/Quarantine Scavenger-Tank | -1/Access Resources | -11 -10 -10 -10 -9 -8 -8 -7 -7 -7 -7 -6 -6 -6 -5 -5 -4 -4 -4 -4 -4 -3 -2 -2 -1 ----------- Run | Yrd Mat Min Exi Min Mat Gar Fac Low Low Zio Pro Fac Gar Fac Gar Fac Ext Cet Arc Hub Res Res Qua Acc Matter Collected 12322 | 263 166 65 . 49 745 757 1458 518 150 40 284 159 886 283 1064 621 1140 175 30 344 670 672 444 1339 Remotely . | . . . . . . . . . . . . . . . . . . . . . . . . . Salvage Created 24487 | 53 647 222 163 170 565 877 1882 563 78 . 266 157 1240 333 2003 1544 1864 68 30 312 1192 1777 2424 6057 Parts 1117 | 4 42 12 7 10 29 58 69 25 7 . 10 16 46 21 100 81 69 4 2 21 37 88 120 239 Haulers Intercepted 3 | . 1 . . . 1 . 1 . . . . . . . . . . . . . . . . . Recyclers Shooed 19 | . 2 . . . 1 . 3 . . . . 1 . . . . 3 . . . . 2 1 6 Parts Field Recycled . | . . . . . . . . . . . . . . . . . . . . . . . . . Retrieved Matter . | . . . . . . . . . . . . . . . . . . . . . . . . . Parts Self-Destructed 40 | . . . . . . . . 22 5 . 13 . . . . . . . . . . . . . Prevented . | . . . . . . . . . . . . . . . . . . . . . . . . . Parts Restored . | . . . . . . . . . . . . . . . . . . . . . . . . . Kills | -11 -10 -10 -10 -9 -8 -8 -7 -7 -7 -7 -6 -6 -6 -5 -5 -4 -4 -4 -4 -4 -3 -2 -2 -1 ------- Run | Yrd Mat Min Exi Min Mat Gar Fac Low Low Zio Pro Fac Gar Fac Gar Fac Ext Cet Arc Hub Res Res Qua Acc Combat Hostiles Destroyed 397 | . 9 5 . 6 14 30 41 11 5 . 7 8 26 3 36 24 33 1 . 4 20 19 27 68 Melee 9 | . 3 1 . 1 . . 1 . . . . . 2 . . 1 . . . . . . . . Guns 51 | . 6 3 . 5 13 . . . . . . . . . 12 6 2 . . 4 . . . . Cannons 192 | . . . . . . 14 32 7 2 . 4 6 20 3 5 12 17 1 . . 9 13 19 28 AOE 83 | . . . . . 1 16 8 4 3 . 2 2 2 . 16 5 11 . . . 2 . . 11 Classes Destroyed 26 | 1 8 1 . 2 2 2 3 . . . 1 . 1 . 1 1 1 . . . . . 1 1 Worker 22 | . 4 . . . 1 . 3 . . . . 1 . 1 . 4 . . . 1 . 2 1 4 Builder 17 | . 3 . . . . . 3 . . . . 1 . . . . 1 . . . . 2 4 3 Tunneler 6 | 2 . . . . . . 1 . . . . . . . . . . . . . . 1 . 2 Hauler 3 | . 1 . . . 1 . 1 . . . . . . . . . . . . . . . . . Recycler 19 | . 2 . . 1 . . 5 . . . . . . 1 . . 4 . . . . 1 2 3 Mechanic 1 | . . . . . . . 1 . . . . . . . . . . . . . . . . . Operator 7 | . 1 . . . 2 . 1 . . . . . . 1 . . . . . . . . 2 . Watcher 12 | . 3 . . . . . 1 . . . . 1 . . . 2 1 . . . . 1 . 3 Swarmer 79 | . 6 . . 3 . 8 . 3 4 . . 6 5 . 15 3 8 . . . 4 . 5 9 Saboteur 5 | . . . . . . . . . . . . . . . 2 . 1 . . . . . . 2 Grunt 165 | . 3 3 . 1 8 16 29 5 . . 4 . 8 . 12 14 9 . . . 14 4 7 28 Brawler 5 | . . . . . . . 1 1 . . . . 1 . . . 1 . . . . . . 1 Duelist 13 | . . . . . 2 . 2 1 . . . . 2 . . . 4 . . . . . . 2 Protector 3 | . . . . . . . . . . . . . . . . . 1 . . 1 . . 1 . Researcher 1 | . . . . . . . . . . . . . . . . . . . . . . . 1 . Sentry 39 | . . 2 . . 3 6 3 1 1 . 1 1 2 1 4 1 7 . . . . 2 . 4 Demolisher 1 | . . . . 1 . . . . . . . . . . . . . . . . . . . . Specialist 9 | . . . . . 1 . . . . . . . . . 2 1 . . . . . . 3 2 Hunter 28 | . . . . . . 1 1 . . . 1 . 6 . 1 2 . . . 1 2 5 . 8 Programmer 33 | . . . . . . . 5 . . . . 1 . 2 . 1 . . . . . 7 8 9 Heavy 5 | . . . . . . . . . . . . . . . . 2 . . . 1 . 1 . 1 Q-Series 2 | . . . . . . . . . . . . . . . . . . . . . . . . 2 Behemoth 3 | . . . . . . . . . . . 1 . . . . . 2 . . . . . . . Cetus Guard 1 | . . . . . . . . . . . . . . . . . . 1 . . . . . . Lightning 4 | . . . . . . . . . . . . . . . . . . . . 1 . . 3 . Executioner 2 | . . . . . . . . . . . . . 2 . . . . . . . . . . . Botcube 1 | . . . . . . 1 . . . . . . . . . . . . . . . . . . Assembled 2 | . . . . 2 . . . . . . . . . . . . . . . . . . . . Thug 1 | . . . . . . . . 1 . . . . . . . . . . . . . . . . Guerrilla 1 | . . . . . . . . 1 . . . . . . . . . . . . . . . . Infiltrator 1 | . . . . . . . . . . . . . . . . 1 . . . . . . . . Commander 1 | . . . . . . . . 1 . . . . . . . . . . . . . . . . Best Kill Streak 15 | 2 4 2 . 3 5 6 8 3 4 . 3 5 6 4 6 8 8 1 . 2 6 4 7 15 Combat Bots Only 9 | . 3 2 . 3 4 6 8 3 4 . 3 4 6 3 6 8 7 1 . 2 6 4 6 9 Max Kills in Single Turn 5 | 1 1 1 . 1 1 3 2 2 3 . 2 1 2 1 3 5 4 1 . 1 2 2 2 3 Gunslinging . | . . . . . . . . . . . . . . . . . . . . . . . . . Exploded 3 | . . . . . 1 3 2 2 3 . 2 1 2 . 3 3 3 . . . 2 . . 2 Melee 1 | . 1 1 . 1 . . 1 . . . . . 1 . . 1 . . . . . . . . Uniques/NPCs Destroyed . | . . . . . . . . . . . . . . . . . . . . . . . . . Combat | -11 -10 -10 -10 -9 -8 -8 -7 -7 -7 -7 -6 -6 -6 -5 -5 -4 -4 -4 -4 -4 -3 -2 -2 -1 -------- Run | Yrd Mat Min Exi Min Mat Gar Fac Low Low Zio Pro Fac Gar Fac Gar Fac Ext Cet Arc Hub Res Res Qua Acc Hostile Shots Fired 2123 | . 59 27 . 30 61 54 220 23 28 . 31 59 209 28 226 261 239 16 . 97 22 99 93 241 Missed 643 | . 8 5 . 10 16 19 80 15 15 . 13 8 60 5 55 92 75 8 . 22 4 24 27 82 Hits 1480 | . 51 22 . 20 45 35 140 8 13 . 18 51 149 23 171 169 164 8 . 75 18 75 66 159 Melee 10 | . . . . 3 1 . 3 . . . . . 1 . . . 2 . . . . . . . Projectile 1470 | . 51 22 . 17 44 35 137 8 13 . 18 51 148 23 171 169 162 8 . 75 18 75 66 159 AOE 12 | . . . . 11 1 . . . . . . . . . . . . . . . . . . . Critical Strikes 73 | . 2 1 . . 2 1 10 . . . 2 . 7 2 1 10 9 2 . 4 1 2 10 7 Actively Blocked 31 | . . . . . . . . . . . . . . . . 10 9 2 . 4 1 . . 5 Part Disruptions 5 | . . . . . . . . . . . . . . . . 2 . . . 1 . . . 2 Damage Taken 27473 | . 550 295 . 593 810 531 1946 94 121 . 404 567 2739 436 2703 3444 4344 155 . 1394 264 1551 1009 3523 Core 2004 | . 120 51 . 76 109 57 87 . 6 . 20 33 365 87 105 545 85 . . 39 . 18 . 201 Absorbed by Shields 1996 | . . . . . . 4 . . . . . 106 330 . 30 . . 56 . 501 96 308 77 488 Reduced by Siege Mode 192 | . . . . . . . . . . . . . . . . . . . . 147 . 2 26 17 Redirected to Shielding 377 | . . . . . . . . . . . . 65 159 . . . . . . . 52 101 . . Ignored by Resistances 1549 | . . . . . 65 18 . . . . . . . . . . . . . . . 234 838 394 Regen/Repaired (Parts) 666 | . . . . . 89 . 400 . . . . . . . . . . . . . . . 177 . Core Remaining (%) 71 | 100 . . . 1 . 69 . . . . 83 . 53 . 80 . . . . 41 100 . 98 87 Volleys Fired 1279 | 3 53 5 17 15 45 89 111 19 8 . 12 21 97 15 120 27 99 10 13 17 51 86 131 215 Largest 3 | 2 2 2 2 2 3 1 3 1 1 . 1 1 2 3 3 1 3 3 2 3 1 1 1 1 Hottest 228 | 60 60 112 112 112 105 63 111 50 50 . 50 50 162 166 162 65 205 228 90 105 113 120 120 120 Shots Fired 1809 | 6 83 10 34 27 125 89 231 19 8 . 12 21 115 31 180 71 174 26 15 50 51 87 131 213 Gun 561 | 6 83 10 34 27 120 . . . . . . . 7 24 121 44 20 11 4 50 . . . . Cannon 1159 | . . . . . . 77 220 15 7 . 9 18 105 7 43 26 138 15 11 . 51 87 131 199 Launcher 85 | . . . . . 5 12 11 4 1 . 3 3 3 . 16 1 16 . . . . . . 10 Special 4 | . . . . . . . . . . . . . . . . . . . . . . . . 4 Kinetic 804 | 3 31 . . 5 112 61 213 15 7 . 9 18 41 24 121 26 51 13 4 50 . . . . Thermal 498 | 3 30 10 34 22 8 . . . . . . . 6 7 . 44 107 13 11 . 5 43 91 64 Explosive 75 | . . . . . 5 12 11 4 1 . 3 3 3 . 16 1 16 . . . . . . . Electromagnetic 428 | . 22 . . . . 16 7 . . . . . 65 . 43 . . . . . 46 44 40 145 Robot Hit Streak 42 | 2 11 5 18 7 10 11 8 8 8 . 4 4 17 9 42 19 42 19 3 6 16 17 36 13 Robot Miss Streak 7 | 1 4 1 2 7 6 3 4 3 1 . 1 2 3 2 3 7 2 3 . 4 1 2 2 3 Penetration Max 2 | . . . . . . 1 . . . . . . . . 2 1 . 1 1 1 1 1 1 1 Secondary Targets 6 | . . 1 . 1 3 . . . . . . . . . 1 . . . . . . . . . Max Gunslinging Chain 1 | . . 1 . 1 1 . . . . . . . . . 1 . . . . . . . . . Capacitor 466 | . . . . . . . . . . . . . . . . . . . . . 51 85 131 199 Autonomous 44 | . . . . . . . . . . . . . . . . 44 . . . . . . . . Shots Hit Robots 1283 | 3 61 17 28 14 88 36 160 15 7 3 13 10 85 23 120 64 175 21 3 33 26 53 88 137 Core Hits 806 | 2 29 7 9 10 49 49 91 14 5 . 10 9 43 11 82 49 76 8 3 26 22 29 44 129 Critical Kills 8 | . . . . . . . . . . . . . . . 4 . 2 . . 2 . . . . Critical Parts Destroyed 6 | . . 1 . . . . . . . . . . . . . . . 2 1 2 . . . . Critical Strikes 78 | . . 1 4 1 . 2 8 3 . . 1 1 4 . 5 6 4 2 1 4 7 2 5 17 Burn 5 | . . . 4 1 . . . . . . . . . . . . . . . . . . . . Meltdown 2 | . . . . . . . . . . . . . . . . . 2 . . . . . . . Destroy 11 | . . . . . . . . . . . . . . . 4 . . 2 1 4 . . . . Blast 24 | . . . . . . 2 7 3 . . 1 1 3 . . 5 2 . . . . . . . Corrupt 32 | . . . . . . . . . . . . . . . 1 . . . . . 7 2 5 17 Smash 1 | . . 1 . . . . . . . . . . . . . . . . . . . . . . Sever 2 | . . . . . . . 1 . . . . . 1 . . . . . . . . . . . Impale 1 | . . . . . . . . . . . . . . . . 1 . . . . . . . . Melee Attacks 150 | . 11 14 . . 2 1 36 5 1 4 6 . 25 . 6 3 36 . . . . . . . Impact 25 | . 11 14 . . . . . . . . . . . . . . . . . . . . . . Slashing 67 | . . . . . 2 1 36 5 1 1 . . 21 . . . . . . . . . . . Piercing 15 | . . . . . . . . . . . 6 . . . 6 3 . . . . . . . . Sneak Attacks 71 | . 1 . . . 2 . 17 5 . 3 . . 4 . . 3 36 . . . . . . . Combat Hostiles . | . . . . . . . . . . . . . . . . . . . . . . . . . Follow-up Attacks . | . . . . . . . . . . . . . . . . . . . . . . . . . Damage Inflicted 61808 | 32 908 380 404 241 1999 3073 6681 1200 515 . 869 1020 3325 726 5754 5217 7908 718 128 963 2291 3246 4500 9710 Guns 10167 | 32 638 130 404 221 1616 . . . . . . . . 489 2713 2423 215 239 128 919 . . . . Cannons 33152 | . . . . . . 1792 3645 484 266 . 378 521 2366 165 860 1775 4463 479 . . 1950 3067 4195 6746 Explosions 14783 | . 71 . . . 226 1245 1598 364 249 . 390 499 655 . 2181 785 3202 . . . 325 39 276 2678 Melee 2951 | . 195 250 . . 154 36 1354 352 . . 101 . 303 . . 206 . . . . . . . . Ramming 755 | . 4 . . 20 3 . 84 . . . . . 1 72 . 28 28 . . 44 16 140 29 286 Kinetic 17295 | 10 148 . . 43 1530 1572 3492 484 266 . 378 521 1286 489 2713 1775 1273 268 128 919 . . . . Thermal 14377 | 22 285 130 404 178 86 . 79 . . . . 133 155 165 . 2423 3405 450 . . . 1473 2881 2108 Explosive 11641 | . . . . . 226 1245 1519 364 249 . 390 366 540 . 2181 785 3202 . . . 325 . . 249 Electromagnetic 14789 | . 276 . . . . 220 153 . . . . . 1040 . 860 . . . . . 1950 1633 1590 7067 Impact 445 | . 195 250 . . . . . . . . . . . . . . . . . . . . . . Slashing 2199 | . . . . . 154 36 1354 352 . . . . 303 . . . . . . . . . . . Piercing 307 | . . . . . . . . . . . 101 . . . . 206 . . . . . . . . Highest Corruption 12 | . . . . 2 . . 2 2 . . . . 4 . . 7 6 6 6 11 . 10 4 12 Average Corruption 4 | . . . . 2 . . 1 1 . . . . 4 . . 5 5 6 3 9 . 2 2 5 Corruption Purged 20 | . . . . . . . . 2 . . . . . . . 2 . . 6 . . 10 . . Corruption Blocked . | . . . . . . . . . . . . . . . . . . . . . . . . . Effects 189 | . . . . 1 . . 18 3 . . . . 2 . . 14 49 16 3 5 . 13 21 44 Message Errors 44 | . . . . . . . 1 1 . . . . 1 . . 4 12 2 1 1 . 6 6 9 Matter Fused 43 | . . . . . . . 5 . . . . . . . . 4 12 4 . 3 . 1 4 10 Heat Flow Errors 22 | . . . . . . . 2 2 . . . . . . . 1 6 1 . . . 2 2 6 Energy Discharges 17 | . . . . . . . 2 . . . . . . . . . 4 1 1 . . 1 4 4 Parts Rejected 3 | . . . . . . . . . . . . . . . . . . . . 1 . . 1 1 Data Loss (minor) 29 | . . . . 1 . . 2 . . . . . . . . 4 8 4 . . . 2 1 7 Data Loss (major) 6 | . . . . . . . 2 . . . . . . . . 1 1 . 1 . . . . 1 Misfires 9 | . . . . . . . 2 . . . . . . . . . 3 1 . . . 1 1 1 Alerts 9 | . . . . . . . 2 . . . . . 1 . . . 2 1 . . . . 1 2 Weapon Failures 7 | . . . . . . . . . . . . . . . . . 1 2 . . . . 1 3 Overload Shots . | . . . . . . . . . . . . . . . . . . . . . . . . . Overflow Damage 1887 | . 19 31 . . 74 123 467 55 3 . 2 143 66 11 116 86 145 . . 4 50 140 170 182 Projectiles 968 | . . . . . . 123 82 5 . . . 96 60 . . 66 87 . . . 50 106 170 123 Explosions 367 | . . . . . . . 59 50 3 . 2 47 6 . 116 2 58 . . . . . . 24 Melee 552 | . 19 31 . . 74 . 326 . . . . . . 11 . 18 . . . 4 . 34 . 35 Knockbacks 49 | . 2 1 . . . 4 16 . . . 2 2 7 . . 8 3 . . 1 . 1 1 1 Impact 9 | . 2 1 . . . . 1 . . . . . . . . 1 . . . 1 . 1 1 1 Kinetic 34 | . . . . . . 4 12 . . . 2 . 7 . . 6 3 . . . . . . . Secondary 6 | . . . . . . . 3 . . . . 2 . . . 1 . . . . . . . . Self-Inflicted Damage 918 | . 50 . . . 25 . 53 . 1 . . 70 97 . 233 . 181 . . . . 9 96 103 Shots 35 | . 2 . . . 1 . 2 . 1 . . 2 4 . 6 . 4 . . . . 1 1 11 Rammed 33 | . 1 . . 4 . . . . . . . . . . . 4 1 . . 1 1 6 2 13 Targets Rammed 61 | . 1 . . 6 1 . 14 . . . . . 1 5 . 5 1 . . 1 1 8 2 15 Kicked 21 | . . . . . 1 . 14 . . . . . 1 5 . . . . . . . . . . Crushed 7 | . . . . 2 . . . . . . . . . . . 1 . . . . . 2 . 2 Highest Temperature 435 | 40 192 120 159 73 27 146 354 225 29 . 30 11 297 341 346 110 345 161 . . 166 435 232 257 Average Temperature 67 | 19 71 56 63 19 14 23 75 72 13 . 15 7 47 105 80 23 135 33 . . 63 115 78 80 Received Heat Transfer 4953 | . 147 123 . 129 279 177 882 39 . . 57 26 282 63 944 579 459 . . . 51 42 125 549 Effects 7 | . . . . . . . 2 . . . . . . 2 . . . . . . . 3 . . Shutdowns 1 | . . . . . . . . . . . . . . 1 . . . . . . . . . . Energy Bleed 1 | . . . . . . . 1 . . . . . . . . . . . . . . . . . Interference 4 | . . . . . . . . . . . . . . 1 . . . . . . . 3 . . Damage (minor) 1 | . . . . . . . 1 . . . . . . . . . . . . . . . . . Siege Activations 9 | . . . . . . . . . . . . . . . . . . . . 1 . 2 5 1 Total Turns 185 | . . . . . . . . . . . . . . . . . . . . 38 . 24 117 6 Longest Duration 89 | . . . . . . . . . . . . . . . . . . . . 38 . 22 89 6 Martial Activations . | . . . . . . . . . . . . . . . . . . . . . . . . . Shielding Activations . | . . . . . . . . . . . . . . . . . . . . . . . . . Robots Disrupted 4 | . . . . . . . . . . . . . . . . . . . . . . . 2 2 Combat Hostiles 4 | . . . . . . . . . . . . . . . . . . . . . . . 2 2 Robots Corrupted 66 | . 2 1 . . . . . . . . . 1 2 1 3 . . . . 1 9 5 9 32 Combat Hostiles 57 | . . 1 . . . . . . . . . . 2 . 3 . . . . . 9 5 8 29 Parts Fried 144 | . 5 . . . . . . . . . . 3 9 1 7 . . . . 2 17 12 10 78 Impact Corruptions 12 | . 2 2 . . . . . . . . . 1 . 1 . . . . . 1 . 2 . 3 Robots Melted 4 | . . . . . . . . . . . . . . . . . 3 . . . . 1 . . Combat Hostiles 4 | . . . . . . . . . . . . . . . . . 3 . . . . 1 . . Parts Melted 24 | . . . 1 . . . . . . . . . . . . . 9 . . . . 6 2 6 Heat Transferred 14512 | 50 475 333 1332 518 222 . 100 . . . . 100 100 . . 2175 3515 481 . . . 1123 2119 1869 Parts Sabotaged . | . . . . . . . . . . . . . . . . . . . . . . . . . Parts Stolen . | . . . . . . . . . . . . . . . . . . . . . . . . . Parts Stripped . | . . . . . . . . . . . . . . . . . . . . . . . . . Power Chain Reactions 11 | . 2 . . . . . 1 . . . . . 2 . . . . . . . . 1 1 4 Alert | -11 -10 -10 -10 -9 -8 -8 -7 -7 -7 -7 -6 -6 -6 -5 -5 -4 -4 -4 -4 -4 -3 -2 -2 -1 ------- Run | Yrd Mat Min Exi Min Mat Gar Fac Low Low Zio Pro Fac Gar Fac Gar Fac Ext Cet Arc Hub Res Res Qua Acc Maximum Alert Level 5 | . . . . . 2 5 4 . . . . . 4 2 4 3 4 3 1 1 2 1 2 5 Low Security (%) 27 | 100 100 100 . 100 81 . . . . . . 100 12 . 2 . . . 5 72 17 54 41 . Level 1 19 | . . . . . 8 13 . . . . . . 12 82 8 19 1 . 94 27 64 45 36 40 Level 2 16 | . . . . . 9 10 . . . . . . 43 17 8 28 61 6 . . 18 . 21 15 Level 3 21 | . . . . . . 23 39 . . . . . 28 . 43 51 32 93 . . . . . 31 Level 4 13 | . . . . . . 46 60 . . . . . 1 . 36 . 4 . . . . . . 7 Level 5 . | . . . . . . 6 . . . . . . . . . . . . . . . . . 5 High Security . | . . . . . . . . . . . . . . . . . . . . . . . . . Max Security . | . . . . . . . . . . . . . . . . . . . . . . . . . Peak Influence 1799 | 5 78 49 . 60 483 1799 1536 . . . . 156 1139 600 1562 945 1152 834 334 387 479 380 518 1667 Initial 944 | . . 23 . . 23 302 944 . . . . 16 100 576 198 819 448 642 309 69 186 237 207 273 Average 560 | . 14 6 . 8 103 1037 1165 . . . . 73 609 320 1029 635 676 763 264 141 333 195 261 702 Influence Increases 16333 | 10 313 141 . 95 763 1537 1338 240 110 . 301 345 1259 168 1494 1016 1772 352 29 639 676 727 929 2079 Destroy 0b10 Robot/C 9040 | . 180 100 . 80 480 760 820 220 100 . 200 160 620 60 720 520 880 160 . 260 400 420 540 1360 Destroy 0b10 Robot/NC 545 | 10 70 . . 5 25 10 80 . . . . 15 . 15 25 35 60 10 5 20 . 35 50 75 Destroy Leader 1328 | . 48 10 . 10 134 30 184 20 10 . 30 42 30 20 50 106 84 . . 52 50 112 60 246 Allied During Kill 1141 | . . . . . 47 72 . . . . 71 . 25 . . 42 414 170 5 184 66 37 . 8 Successful Hack 234 | . . . . . 21 30 42 . . . . 12 . 3 14 16 42 . . . 27 . . 27 Select Force Hacks 70 | . . . . . . . . . . . . . . 20 . . . . . 50 . . . . Disable Machine 690 | . . . . . 30 45 105 . . . . 60 30 15 45 45 15 . 15 15 45 15 135 75 Anti-Garrison Action 1100 | . . . . . . 450 . . . . . . 350 . 300 . . . . . . . . . Destroy Structure 1485 | . . 1 . . 26 110 107 . . . . 56 144 20 280 122 202 12 4 58 58 48 84 153 Lose Combat Pursuer 600 | . 15 30 . . . 30 . . . . . . 60 15 60 30 75 . . . 30 60 60 135 Active Sensor Use 100 | . . . . . . . . . . . . . . . . 100 . . . . . . . . Influence Decreases 14678 | 10 253 201 . 35 357 204 1605 1106 561 215 275 227 304 983 216 1663 1539 726 605 480 611 779 843 880 Entered New Map 5678 | . . 37 . . 37 164 855 568 127 215 . 10 44 523 86 743 467 506 465 129 171 185 163 183 Time Decay 6549 | 10 252 154 . 35 300 . 670 538 434 . 255 197 . 310 . 440 622 160 140 161 270 494 530 577 Lost Part 861 | . 1 10 . . 20 . 60 . . . . 10 180 . 130 120 180 . . 30 . 20 . 100 Lost Ally 690 | . . . . . . 40 20 . . . 20 10 80 . . 60 120 60 . 160 20 80 . 20 Purge Threat 900 | . . . . . . . . . . . . . . 150 . 300 150 . . . 150 . 150 . Squads Dispatched 72 | . 2 . . . 8 . 15 . . . . 2 . 3 . 8 4 . . 3 5 6 6 10 Investigation 12 | . 1 . . . 1 . 3 . . . . 1 . 2 . 1 1 . . 1 . . 1 . Extermination 21 | . . . . . . . 5 . . . . 1 . 1 . 2 . . . 1 . 3 4 4 Reinforcement 25 | . 1 . . . 5 . 2 . . . . . . . . 4 . . . 1 5 3 1 3 Assault 10 | . . . . . . . 4 . . . . . . . . 1 3 . . . . . . 2 Garrison 4 | . . . . . 2 . 1 . . . . . . . . . . . . . . . . 1 Intercept . | . . . . . . . . . . . . . . . . . . . . . . . . . Searches Triggered . | . . . . . . . . . . . . . . . . . . . . . . . . . Construction Impeded 2 | . . . . . . . 1 . . . . . . . . . . . . . . . . 1 Haulers Reinforced 2 | . . . . . . . . . . . . . . . . . . . . . 2 . . . Active Scanning Responses 1 | . . . . . . . . . . . . . . . . 1 . . . . . . . . Cargo Convoy Interrupts . | . . . . . . . . . . . . . . . . . . . . . . . . . Stealth | -11 -10 -10 -10 -9 -8 -8 -7 -7 -7 -7 -6 -6 -6 -5 -5 -4 -4 -4 -4 -4 -3 -2 -2 -1 --------- Run | Yrd Mat Min Exi Min Mat Gar Fac Low Low Zio Pro Fac Gar Fac Gar Fac Ext Cet Arc Hub Res Res Qua Acc Distress Signals 33 | . 4 1 . . 3 . 1 . . . . 1 . 1 . 4 1 2 . 2 5 2 . 6 Communications Jammed 29 | . . . . . . . . . . . . . . . . 29 . . . . . . . . Distress Signals 19 | . . . . . . . . . . . . . . . . 19 . . . . . . . . Times Spotted 590 | . 22 7 . 21 34 27 63 13 5 . 9 14 31 12 38 41 50 9 . 18 24 26 40 86 Peak Tracking Total 16 | . 5 2 . 16 6 4 7 4 4 . 4 5 5 4 7 8 8 5 . 10 5 5 6 7 Tactical Retreats 29 | . 1 2 . 1 . 1 . . . . . . 3 1 3 1 3 . . . 1 2 2 8 Traps | -11 -10 -10 -10 -9 -8 -8 -7 -7 -7 -7 -6 -6 -6 -5 -5 -4 -4 -4 -4 -4 -3 -2 -2 -1 ------- Run | Yrd Mat Min Exi Min Mat Gar Fac Low Low Zio Pro Fac Gar Fac Gar Fac Ext Cet Arc Hub Res Res Qua Acc Traps Triggered 26 | . 1 . . . . 4 1 . . . . . 8 . 6 . 4 . . . . 1 . 1 Indirectly . | . . . . . . . . . . . . . . . . . . . . . . . . . Trap Hack Attempts 38 | . . . . . . . . . . . . . . . . . 38 . . . . . . . Triggered . | . . . . . . . . . . . . . . . . . . . . . . . . . Disarmed . | . . . . . . . . . . . . . . . . . . . . . . . . . Reprogrammed 4 | . . . . . . . . . . . . . . . . . 4 . . . . . . . Reused . | . . . . . . . . . . . . . . . . . . . . . . . . . Traps Extracted . | . . . . . . . . . . . . . . . . . . . . . . . . . Installed . | . . . . . . . . . . . . . . . . . . . . . . . . . Triggered . | . . . . . . . . . . . . . . . . . . . . . . . . . Machines | -11 -10 -10 -10 -9 -8 -8 -7 -7 -7 -7 -6 -6 -6 -5 -5 -4 -4 -4 -4 -4 -3 -2 -2 -1 ---------- Run | Yrd Mat Min Exi Min Mat Gar Fac Low Low Zio Pro Fac Gar Fac Gar Fac Ext Cet Arc Hub Res Res Qua Acc Machines Disabled 69 | . . . . . 2 11 7 1 . . . 4 10 1 9 3 1 . 1 1 3 1 9 5 Max in Single Turn 3 | . . . . . . 1 2 1 . . . 2 1 1 3 2 . . 1 . 1 1 1 1 Garrison Access 2 | . . . . . . . 2 . . . . . . . . . . . . . . . . . Garrison Relay 14 | . . . . . . 6 . . . . . . 4 . 4 . . . . . . . . . Phase Generator 2 | . . . . . . 1 . . . . . . 1 . . . . . . . . . . . Network Hub 1 | . . . . . . . . . . . . . . . . . . . . 1 . . . . Machines Repaired . | . . . . . . . . . . . . . . . . . . . . . . . . . Machines Dismantled . | . . . . . . . . . . . . . . . . . . . . . . . . . Machines Sabotaged 1 | . . . . . . . . . . . . . . . . . . . . 1 . . . . Overloaded Fab Kills . | . . . . . . . . . . . . . . . . . . . . . . . . . Hacking | -11 -10 -10 -10 -9 -8 -8 -7 -7 -7 -7 -6 -6 -6 -5 -5 -4 -4 -4 -4 -4 -3 -2 -2 -1 --------- Run | Yrd Mat Min Exi Min Mat Gar Fac Low Low Zio Pro Fac Gar Fac Gar Fac Ext Cet Arc Hub Res Res Qua Acc Machines Accessed 64 | . 2 . 2 . 6 4 16 2 1 . . 2 . 6 1 2 9 1 . 2 1 1 4 2 Terminals 30 | . 2 . . . 2 4 6 . . . . . . 1 1 1 8 1 . 2 . . 1 1 Fabricators 9 | . . . . . . . 3 . . . . . . 4 . 1 . . . . 1 . . . Repair Stations 8 | . . . . . 1 . 4 . . . . 1 . . . . . . . . . . 2 . Recycling Units 2 | . . . . . 1 . . . . . . . . . . . 1 . . . . . . . Scanalyzers 4 | . . . . . 1 . 1 . . . . . . . . . . . . . . 1 1 . Garrison Access 6 | . . . . . 1 . 2 . . . . 1 . 1 . . . . . . . . . 1 Total Hacks 145 | . 4 . 2 . 18 6 34 8 1 . . 6 . 17 1 4 19 1 . 3 2 6 8 5 Successful 69 | . 1 . 2 . 12 3 11 8 1 . . 2 . 6 1 2 8 . . 1 1 6 3 1 Failed 75 | . 3 . . . 5 3 23 . . . . 4 . 11 . 2 11 1 . 2 1 . 5 4 Catastrophic 13 | . . . . . . . 5 . . . . . . 2 . . 2 1 . 1 . . 2 . Database Lockouts 1 | . . . . . 1 . . . . . . . . . . . . . . . . . . . Manual 38 | . 4 . 1 . 6 . 5 . . 1 . 2 . 6 . 2 . . . 3 . . 3 5 Terminals 52 | . 4 . . . 5 6 10 . . . . . . 1 1 1 16 1 . 3 . . 1 3 Fabricators 23 | . . . . . . . 6 . . . . . . 12 . 3 . . . . 2 . . . Repair Stations 24 | . . . . . 4 . 11 . . . . 3 . . . . . . . . . . 6 . Recycling Units 6 | . . . . . 3 . . . . . . . . . . . 3 . . . . . . . Scanalyzers 14 | . . . . . 4 . 3 . . . . . . . . . . . . . . 6 1 . Garrison Access 15 | . . . . . 2 . 4 . . . . 3 . 4 . . . . . . . . . 2 Terminal Hacks 29 | . 1 . 2 . 2 3 1 8 1 . . . . 1 1 1 7 . . . . . 1 . Record 9 | . . . 1 . . . . 7 . . . . . . . . . . . . . . 1 . Robot Analysis 1 | . 1 . . . . . . . . . . . . . . . . . . . . . . . Open Door 11 | . . . . . . 1 . 1 1 . . . . . . 1 7 . . . . . . . Branch Access Points 1 | . . . . . . . 1 . . . . . . . . . . . . . . . . . Locate Traps 2 | . . . . . 1 . . . . . . . . 1 . . . . . . . . . . Zone Layout 1 | . . . . . 1 . . . . . . . . . . . . . . . . . . . Garrison Registry 1 | . . . . . . 1 . . . . . . . . . . . . . . . . . . Patrol Navigation 2 | . . . . . . 1 . . . . . . . . 1 . . . . . . . . . Proto ID Catalog 1 | . . . 1 . . . . . . . . . . . . . . . . . . . . . Fabricator Hacks 4 | . . . . . . . . . . . . . . 2 . 1 . . . . 1 . . . Network Status 1 | . . . . . . . . . . . . . . 1 . . . . . . . . . . Build 3 | . . . . . . . . . . . . . . 1 . 1 . . . . 1 . . . Repair Station Hacks 9 | . . . . . 2 . 6 . . . . 1 . . . . . . . . . . . . Scan Component 6 | . . . . . 1 . 4 . . . . 1 . . . . . . . . . . . . Repair 3 | . . . . . 1 . 2 . . . . . . . . . . . . . . . . . Recycling Unit Hacks 2 | . . . . . 1 . . . . . . . . . . . 1 . . . . . . . Retrieve Components 2 | . . . . . 1 . . . . . . . . . . . 1 . . . . . . . Scanalyzer 11 | . . . . . 3 . 1 . . . . . . . . . . . . . . 6 1 . Insert Component 1 | . . . . . 1 . . . . . . . . . . . . . . . . . . . Analyze 1 | . . . . . 1 . . . . . . . . . . . . . . . . . . . Retrieve Study 9 | . . . . . 1 . 1 . . . . . . . . . . . . . . 6 1 . Garrison Access Hacks 5 | . . . . . 1 . 2 . . . . 1 . 1 . . . . . . . . . . Unlock Access 3 | . . . . . 1 . . . . . . 1 . 1 . . . . . . . . . . Seal Access 2 | . . . . . . . 2 . . . . . . . . . . . . . . . . . Unauthorized Hacks 9 | . . . . . 3 . 1 . . . . . . 2 . . . . . 1 . . 1 1 Terminals 3 | . . . . . 1 . . . . . . . . . . . . . . 1 . . . 1 Botnet 1 | . . . . . 1 . . . . . . . . . . . . . . . . . . . Disrupt 1 | . . . . . . . . . . . . . . . . . . . . . . . . 1 Sabotage 1 | . . . . . . . . . . . . . . . . . . . . 1 . . . . Fabricators 2 | . . . . . . . . . . . . . . 2 . . . . . . . . . . Haulers 1 | . . . . . . . . . . . . . . 1 . . . . . . . . . . Download 1 | . . . . . . . . . . . . . . 1 . . . . . . . . . . Repair Stations 2 | . . . . . . . 1 . . . . . . . . . . . . . . . 1 . Patch 2 | . . . . . . . 1 . . . . . . . . . . . . . . . 1 . Recycling Units 1 | . . . . . 1 . . . . . . . . . . . . . . . . . . . Reject 1 | . . . . . 1 . . . . . . . . . . . . . . . . . . . Scanalyzers . | . . . . . . . . . . . . . . . . . . . . . . . . . Garrison Access 1 | . . . . . 1 . . . . . . . . . . . . . . . . . . . Reprogram 1 | . . . . . 1 . . . . . . . . . . . . . . . . . . . Data Cores Recovered 3 | . . . . . 1 . . . . . . . . . . . . . . . 1 . 1 . Used . | . . . . . . . . . . . . . . . . . . . . . . . . . Hacking Detections 49 | . 2 . . . 6 4 14 . . . . 2 . 6 1 1 4 1 . 2 1 1 2 2 Full Trace Events 5 | . . . . . . . 2 . . . . 1 . 1 . . 1 . . . . . . . Feedback Events 1 | . . . . . . . 1 . . . . . . . . . . . . . . . . . Hackware Fried 1 | . . . . . . . 1 . . . . . . . . . . . . . . . . . Feedback Blocked . | . . . . . . . . . . . . . . . . . . . . . . . . . Robot Schematics Acquired 3 | . . . . . . . . . . 3 . . . . . . . . . . . . . . Robots Built 7 | . . . . . . . . . . . . . . . . 3 . . . . 4 . . . Authchips . | . . . . . . . . . . . . . . . . . . . . . . . . . Time 161 | . . . . . . . . . . . . . . . . 93 . . . . 68 . . . Total Robot Build Rating 53 | . . . . . . . . . . . . . . . . 21 . . . . 32 . . . Part Schematics Acquired 16 | . . . . . . . . . . 13 . . . 1 . . . . . . . . 2 . Parts Built 2 | . . . . . . . . . . . . . . 2 . . . . . . . . . . Authchips . | . . . . . . . . . . . . . . . . . . . . . . . . . Time 128 | . . . . . . . . . . . . . . 128 . . . . . . . . . . Total Part Build Rating 16 | . . . . . . . . . . . . . . 16 . . . . . . . . . . Part Studies Acquired 9 | . . . . . 1 . 1 . . . . . . . . . . . . . . 6 1 . Parts Repaired 3 | . . . . . 1 . 2 . . . . . . . . . . . . . . . . . Time 129 | . . . . . 38 . 91 . . . . . . . . . . . . . . . . . Parts Recycled . | . . . . . . . . . . . . . . . . . . . . . . . . . Recycled Matter . | . . . . . . . . . . . . . . . . . . . . . . . . . Retrieved Matter . | . . . . . . . . . . . . . . . . . . . . . . . . . Retrieved Components 10 | . . . . . . . . . . . . . . . . . 10 . . . . . . . Parts Scanalyzed 1 | . . . . . 1 . . . . . . . . . . . . . . . . . . . Part Schematics Acquired . | . . . . . . . . . . . . . . . . . . . . . . . . . Parts Damaged . | . . . . . . . . . . . . . . . . . . . . . . . . . Bothacking | -11 -10 -10 -10 -9 -8 -8 -7 -7 -7 -7 -6 -6 -6 -5 -5 -4 -4 -4 -4 -4 -3 -2 -2 -1 ------------ Run | Yrd Mat Min Exi Min Mat Gar Fac Low Low Zio Pro Fac Gar Fac Gar Fac Ext Cet Arc Hub Res Res Qua Acc Used RIF Installer . | . . . . . . . . . . . . . . . . . . . . . . . . . Robots Hacked 4 | . . . . . . . . . . 3 . . . . . . 1 . . . . . . . Non-combat 1 | . . . . . . . . . . . . . . . . . 1 . . . . . . . Combat 3 | . . . . . . . . . . 3 . . . . . . . . . . . . . . Robot Hacks Applied 4 | . . . . . . . . . . 3 . . . . . . 1 . . . . . . . parse_system 3 | . . . . . . . . . . 3 . . . . . . . . . . . . . . find_recycling 1 | . . . . . . . . . . . . . . . . . 1 . . . . . . . Relay Couplers Released 61 | . . . . . . 28 . . . . . . 20 . 13 . . . . . . . . . Machine Destruction 61 | . . . . . . 28 . . . . . . 20 . 13 . . . . . . . . . Fabnet Peak Effective % . | . . . . . . . . . . . . . . . . . . . . . . . . . Robots Rewired 29 | . . . 4 . . 2 . . . . . . 7 . . . 15 . . . . . . 1 Allies Hacked 2 | . . . . . . . . . . . . . . . . 2 . . . . . . . . Hacks Repelled . | . . . . . . . . . . . . . . . . . . . . . . . . . Allies | -11 -10 -10 -10 -9 -8 -8 -7 -7 -7 -7 -6 -6 -6 -5 -5 -4 -4 -4 -4 -4 -3 -2 -2 -1 -------- Run | Yrd Mat Min Exi Min Mat Gar Fac Low Low Zio Pro Fac Gar Fac Gar Fac Ext Cet Arc Hub Res Res Qua Acc Total Allies 57 | . . 1 4 . 3 2 . . . 2 . 1 8 . . 3 28 . . . 4 . . 1 Largest Group 20 | . . 1 5 4 3 3 1 . . 2 2 1 4 . . 3 20 17 14 14 4 4 . 1 Highest-Rated Group 938 | . . 42 87 79 69 69 25 . . 192 192 96 87 . . 144 938 795 635 629 120 116 . 42 Highest-Rated Ally 96 | . . 42 42 42 38 37 25 . . 96 96 96 38 . . 48 51 51 51 51 44 30 . 42 Initial Warlord ECA Mod 23 | . . . . . . . 10 10 10 10 9 9 9 17 16 23 23 23 23 23 22 21 21 20 Warlord Squad Rendezvous 1 | . . . . . . . . . . . . . . 1 . . . . . . . . . . Geek 1 | . . . . . . . . . . . . . . 1 . . . . . . . . . . Total Orders 29 | . . . . . . . . . . . . 3 4 1 . 4 3 . . . 4 2 5 3 STAY 1 | . . . . . . . . . . . . . . . . . . . . . . . . 1 RETURN 28 | . . . . . . . . . . . . 3 4 1 . 4 3 . . . 4 2 5 2 Ally Attacks 489 | . . . . 13 33 42 2 . . . 30 1 41 . . 19 107 53 . 88 22 37 . 1 Total Damage 10757 | . . . . 209 891 687 . . . . 939 45 594 . . 474 2983 1072 . 1885 337 641 . . Kills 82 | . . . . 5 11 8 . . . . 3 . 5 . . 3 19 9 . 17 . 2 . . Allies Corrupted 3 | . . . . . . . . . . . . . . . . . 3 . . . . . . . Allies Melted . | . . . . . . . . . . . . . . . . . . . . . . . . . Intel | -11 -10 -10 -10 -9 -8 -8 -7 -7 -7 -7 -6 -6 -6 -5 -5 -4 -4 -4 -4 -4 -3 -2 -2 -1 ------- Run | Yrd Mat Min Exi Min Mat Gar Fac Low Low Zio Pro Fac Gar Fac Gar Fac Ext Cet Arc Hub Res Res Qua Acc Active Infowar (turns) 10573 | . . . . . 857 810 2095 1114 947 . 858 322 100 370 118 833 72 . . . 1 271 665 1140 Optics 1504 | . . . . . . . 1503 . . . . . 1 . . . . . . . . . . . Sensors 6102 | . . . . . . . 593 1114 947 . 856 322 . 370 117 154 . . . . . 271 665 693 A.S.S. 331 | . . . . . . . . . . . . . . . . 260 71 . . . . . . . Traps 2 | . . . . . . . . . . . 2 . . . . . . . . . . . . . Seismic 1667 | . . . . . 857 810 . . . . . . . . . . . . . . . . . . T.N.C. 1 | . . . . . . . . . . . . . . . 1 . . . . . . . . . Triangulation 1003 | . . . . . . . . . . . . . . . . . . . . . . . . 1003 Spoofing 1 | . . . . . . . . . . . . . . . . . 1 . . . . . . . Jamming 519 | . . . . . . . . . . . . . 99 . . 419 . . . . 1 . . . Robot Analysis Total 1 | . 1 . . . . . . . . . . . . . . . . . . . . . . . Derelict Logs Recovered 7 | . . 1 . . . . . 1 2 2 1 . . . . . . . . . . . . . Drone Launches 28 | . . . . . . . . . . . . 3 4 1 . 4 3 . . . 4 2 5 2 Drone Recoveries 28 | . . . . . . . . . . . . 3 4 1 . 4 3 . . . 4 2 5 2 Exploration | -11 -10 -10 -10 -9 -8 -8 -7 -7 -7 -7 -6 -6 -6 -5 -5 -4 -4 -4 -4 -4 -3 -2 -2 -1 ------------- Run | Yrd Mat Min Exi Min Mat Gar Fac Low Low Zio Pro Fac Gar Fac Gar Fac Ext Cet Arc Hub Res Res Qua Acc Turns Passed 26848 | 107 1041 1285 816 157 990 1261 2597 1532 1069 1306 989 493 1639 688 1493 1082 2118 330 297 394 591 1318 1482 1773 Spaces Moved 14118 | 53 366 600 454 58 386 658 1381 1048 795 990 711 308 949 453 928 524 776 148 40 173 284 579 643 813 Core 2 | 2 . . . . . . . . . . . . . . . . . . . . . . . . Treads 5667 | 51 366 600 454 58 64 . . . . . . . . . 94 524 776 148 40 173 284 579 643 813 Legs 8449 | . . . . . 322 658 1381 1048 795 990 711 308 949 453 834 . . . . . . . . . Wheels . | . . . . . . . . . . . . . . . . . . . . . . . . . Hover . | . . . . . . . . . . . . . . . . . . . . . . . . . Flight . | . . . . . . . . . . . . . . . . . . . . . . . . . Fastest Speed 50 | 50 160 160 160 160 130 126 127 127 130 130 120 122 100 105 105 160 162 160 160 160 165 165 161 158 Average Speed 140 | 155 160 160 160 160 170 138 127 127 130 130 122 122 117 106 114 161 162 160 160 160 165 165 161 162 Slowest Speed 260 | 160 160 160 160 160 240 200 130 130 130 130 130 122 260 108 160 165 165 162 160 165 165 167 167 219 Overloaded Moves . | . . . . . . . . . . . . . . . . . . . . . . . . . Propulsion Burnouts . | . . . . . . . . . . . . . . . . . . . . . . . . . Robots Hopped . | . . . . . . . . . . . . . . . . . . . . . . . . . Potential Cave-ins 6 | . . . . . . . . . . . . . . . . . . . . . . . 2 4 Cave-ins Triggered . | . . . . . . . . . . . . . . . . . . . . . . . . . Exploration Rate (%) 52 | 4 47 93 89 17 38 81 41 98 95 86 81 12 78 15 84 17 73 56 59 24 15 17 71 29 Regions Visited 24 Branch Regions 12 Pre-discovered Areas 4 | . . . 1 . . . . 3 . . . . . . . . . . . . . . . . Known Exits Taken 12 | . . . . . 1 . 1 1 1 1 1 1 . 1 . 1 . . . . 1 1 1 . Unknown Exits Taken 9 | 1 1 1 1 1 . . . . . . . . . . . . 1 1 1 1 . . . . Scrap Searched 14 | . . 2 . 2 . . . 2 3 3 2 . . . . . . . . . . . . . Spaces Dug 322 | . . . . . . 14 9 40 1 . 20 19 19 2 116 16 18 . 2 . 5 11 10 20 Terrain Destroyed 1224 | . . . . . 45 122 112 72 9 . 38 57 149 11 215 62 172 5 2 16 29 20 30 58 Melee 19 | . . . . . . . 9 . 1 . . . 4 . 5 . . . . . . . . . Projectile 214 | . . . . . . 23 11 7 2 . 1 8 14 11 9 19 18 5 2 16 5 14 22 27 AOE 988 | . . . . . 45 99 92 65 6 . 37 49 131 . 201 43 154 . . . 22 6 7 31 Terrain Rammed . | . . . . . . . . . . . . . . . . . . . . . . . . . Walls Destroyed . | . . . . . . . . . . . . . . . . . . . . . . . . . Machines Disabled . | . . . . . . . . . . . . . . . . . . . . . . . . . Actions | -11 -10 -10 -10 -9 -8 -8 -7 -7 -7 -7 -6 -6 -6 -5 -5 -4 -4 -4 -4 -4 -3 -2 -2 -1 --------- Run | Yrd Mat Min Exi Min Mat Gar Fac Low Low Zio Pro Fac Gar Fac Gar Fac Ext Cet Arc Hub Res Res Qua Acc Total 19611 | 69 722 898 511 93 619 886 1975 1207 818 1005 795 393 1295 629 1180 708 1438 221 258 252 403 922 1082 1232 Wait 2845 | 2 261 245 11 2 132 49 343 99 2 2 40 41 108 116 49 99 380 38 203 32 38 179 255 119 Move 14095 | 52 365 599 453 57 385 657 1380 1047 794 989 710 308 948 453 927 523 775 147 39 172 283 578 642 812 Hop . | . . . . . . . . . . . . . . . . . . . . . . . . . Pick Up 209 | 6 10 10 10 5 11 5 21 9 3 2 3 8 18 9 11 11 17 5 . 3 3 7 10 12 Fast Attach 139 | 6 3 . . 1 11 2 11 1 . 1 4 . 14 6 8 12 15 5 2 10 7 9 4 7 Attach 102 | . 1 2 . 4 3 3 10 2 . . 1 4 14 1 11 8 14 1 . 1 1 5 2 14 Detach 48 | . 1 . . 1 3 . 4 1 . . . 1 6 2 9 2 6 1 . 3 1 5 . 2 Swap 263 | . 10 5 . . 10 8 23 15 7 4 12 7 19 12 18 9 10 3 . 4 9 30 22 26 Drop 214 | . 6 18 2 2 16 8 19 9 3 3 7 3 9 10 13 8 9 11 1 9 9 15 14 10 Fire 1279 | 3 53 5 17 15 45 89 111 19 8 . 12 21 97 15 120 27 99 10 13 17 51 86 131 215 Melee 150 | . 11 14 . . 2 1 36 5 1 4 6 . 25 . 6 3 36 . . . . . . . Ram . | . . . . . . . . . . . . . . . . . . . . . . . . . Kick 21 | . . . . . 1 . 14 . . . . . 1 5 . . . . . . . . . . Crush 40 | . 1 . . 6 . . . . . . . . . . . 5 1 . . 1 1 8 2 15 Escape Stasis 45 | . . . . . . 20 3 . . . . . 14 . 8 . . . . . . . . . Rewire 123 | . . . 18 . . 44 . . . . . . 22 . . 1 38 . . . . . . . Trap 38 | . . . . . . . . . . . . . . . . . 38 . . . . . . . Miscellaneous . | . . . . . . . . . . . . . . . . . . . . . . . . . Route ------- -11/Scrapyard -10/Materials -10/Mines (discovered 4 exits: [*Mat x2] / *Exi / [*Sub]) -10/Exiles -9/Mines -8/Materials (discovered 3 exits: *Fac / [*Sto] / Gar) -8/Garrison (discovered 3 exits: *Fac x3) -7/Factory (discovered 3 exits: *Fac / *Low x2) -7/Lower Caves -7/Lower Caves (discovered 2 exits: *Fac / *Zio) -7/Zion -6/Proximity Caves -6/Factory (discovered 2 exits: Low / Gar) -6/Garrison (discovered 3 exits: *Fac x3) -5/Factory (discovered 2 exits: Upp / Gar) -5/Garrison (discovered 3 exits: *Fac x3) -4/Factory -4/Extension (discovered 2 exits: *Res / *Cet) -4/Cetus (discovered 2 exits: *Res / [*Arc]) -4/Archives -4/Hub_04(d) -3/Research (discovered 4 exits: *Res x3 / [*Tes]) -2/Research -2/Quarantine -1/Access Tau Ceti IV Orbit History --------- Turn | Location | Event 4 | -11/Scrapyard | Discovered new exit (range 16) 108 | -11/Scrapyard | Entered Materials 367 | -10/Materials | Build established: Mutant 915 | -10/Materials | Discovered new exit (range 16) 1149 | -10/Materials | Entered Mines 1174 | -10/Mines | Met a Derelict bent on vengeance 1211 | -10/Mines | Core integrity fell below 50% 1330 | -10/Mines | Learned Materials stockpile data 1405 | -10/Mines | Discovered new exit (range 8) 1551 | -10/Mines | Discovered new exit (range 14) 1799 | -10/Mines | Excavation squad dispatched 1799 | -10/Mines | A large section of the Mines collapsed 1879 | -10/Mines | Deemed a non-threat by the Exiles lab entrance 1911 | -10/Mines | Discovered new exit (range 8) 2337 | -10/Mines | Botcube activated 2361 | -10/Mines | Botcube completed mutation into treaded form, armed with 2 guns. 2423 | -10/Mines | Discovered new exit (range 5) 2434 | -10/Mines | Entered Exiles 2434 | -10/Exiles | Found Exiles lab destroyed 2434 | -10/Exiles | Accompanied by 1 ally 2944 | -10/Exiles | Learned location of Zion (-7) 3066 | -10/Exiles | Opened EX-Vault 3225 | -10/Exiles | Discovered new exit (range 14) 3250 | -10/Exiles | Entered Mines 3250 | -9/Mines | Accompanied by 5 allies 3251 | -9/Mines | Assembled infested the area 3292 | -9/Mines | Core integrity fell below 20% 3305 | -9/Mines | Lost 5 allies 3331 | -9/Mines | Lost 5 parts (1p2n1u1w) 3343 | -9/Mines | Found Botcube 3396 | -9/Mines | Discovered new exit (range 8) 3407 | -9/Mines | Entered Materials 3407 | -8/Materials | Evolved 4 slots: Propulsion x1, Utility x2, Weapon x1 3651 | -8/Materials | Repaired Hpw. Shotgun 3665 | -8/Materials | Discovered new exit (range 11) 3712 | -8/Materials | Central database locked down 3881 | -8/Materials | Botcube activated 3897 | -8/Materials | Botcube completed mutation into treaded form, armed with 2 guns. 4108 | -8/Materials | Discovered new exit (range 12) 4289 | -8/Materials | Garrison activated, responded to threat 4353 | -8/Materials | Identified exit to Garrison 4397 | -8/Materials | Entered Garrison 4397 | -8/Garrison | Accompanied by 3 allies 4417 | -8/Garrison | Discovered new exit (range 58) 4417 | -8/Garrison | Discovered new exit (range 70) 4417 | -8/Garrison | Discovered new exit (range 59) 4456 | -8/Garrison | Garrison Relay disabled 4567 | -8/Garrison | Phase Generator disabled 4607 | -8/Garrison | Build established: Scavenger-Tank 4640 | -8/Garrison | Triggered checkpoint 4653 | -8/Garrison | Triggered checkpoint 4721 | -8/Garrison | Triggered checkpoint 4778 | -8/Garrison | Murdered *5H-0TY 4778 | -8/Garrison | Destroyed *5H-0TY 4786 | -8/Garrison | Found Botcube 4872 | -8/Garrison | Garrison Relay disabled 4926 | -8/Garrison | Triggered checkpoint 4971 | -8/Garrison | Garrison Relay disabled 5117 | -8/Garrison | Garrison Relay disabled 5283 | -8/Garrison | Triggered checkpoint 5503 | -8/Garrison | Triggered checkpoint 5546 | -8/Garrison | Garrison Relay disabled 5578 | -8/Garrison | Triggered checkpoint 5624 | -8/Garrison | Garrison Relay disabled 5658 | -8/Garrison | Entered Factory 5658 | -7/Factory | Accompanied by 1 ally 5658 | -7/Factory | Evolved 2 slots: Propulsion x1, Utility x1 5699 | -7/Factory | Build established: Mutant 6448 | -7/Factory | Hacking Suite fried by hacking feedback 6477 | -7/Factory | Garrison activated, responded to threat 6526 | -7/Factory | Destroyed 7 combat bots 6823 | -7/Factory | Repaired Broken Hvy. Assault Cannon 6854 | -7/Factory | Build established: Tank 6858 | -7/Factory | First assault squad dispatched 6862 | -7/Factory | Repaired Titanium Leg 7056 | -7/Factory | Destroyed 8 combat bots 7371 | -7/Factory | Build established: Mutant 7565 | -7/Factory | Discovered new exit (range 16) 7586 | -7/Factory | Identified exit to Factory 7981 | -7/Factory | Identified exit to Lower Caves 8255 | -7/Factory | Entered Lower Caves 8271 | -7/Lower Caves | Met a Warlord Commander 8272 | -7/Lower Caves | Learned location of Warlord (-5) 8273 | -7/Lower Caves | Warlord Commander delivered Encrypted Comm Array 8278 | -7/Lower Caves | Found Encrypted Comm Array 8702 | -7/Lower Caves | Attracted the attention of an 0b10 checkpoint 8833 | -7/Lower Caves | Encountered a Warlord checkpoint 9112 | -7/Lower Caves | Build established: Skirmisher 9333 | -7/Lower Caves | Entered an active Warlord outpost 9392 | -7/Lower Caves | Learned location of Extension (-4) 9392 | -7/Lower Caves | Learned location of 1 exit from Factory 9392 | -7/Lower Caves | Learned Extension emergency access door positions 9392 | -7/Lower Caves | Learned Factory security intel 9392 | -7/Lower Caves | Learned Research terminal intel 9392 | -7/Lower Caves | Learned Factory garrison access intel 9421 | -7/Lower Caves | Destroyed K0-VKQ(g) 9532 | -7/Lower Caves | Discovered new exit (range 5) 9786 | -7/Lower Caves | Identified exit to Lower Caves 9787 | -7/Lower Caves | Entered another Lower Caves area 9847 | -7/Lower Caves | Discovered exit to Factory (range 14) 9856 | -7/Lower Caves | Learned 4 Factory zone layouts 10077 | -7/Lower Caves | Build established: Derelict-Mutant 10078 | -7/Lower Caves | Encountered a Warlord checkpoint 10440 | -7/Lower Caves | Discovered new exit (range 6) 10448 | -7/Lower Caves | Identified exit to Zion 10534 | -7/Lower Caves | Attracted the attention of an 0b10 checkpoint 10856 | -7/Lower Caves | Entered Zion 10929 | -7/Zion | Discovered new exit (range 16) 11016 | -7/Zion | Learned Factory emergency access door positions 11104 | -7/Zion | Learned Factory garrison access intel 11133 | -7/Zion | Learned Factory non-interactive machine intel 11153 | -7/Zion | Build established: Mutant 11174 | -7/Zion | Given the Hacking Drone Bay 11175 | -7/Zion | Found Prototype Device 11176 | -7/Zion | Identified Hacking Drone Bay 11189 | -7/Zion | Learned Factory repair station intel 11437 | -7/Zion | Met Imprinter 11520 | -7/Zion | Found CR-A16's Pointy Stick 11808 | -7/Zion | Given A8's code to call for help 12022 | -7/Zion | Enhanced Grunt warped into view, answering call for help 12024 | -7/Zion | Enhanced Grunt warped into view, answering call for help 12159 | -7/Zion | Identified exit to Proximity Caves 12162 | -7/Zion | Entered Proximity Caves 12162 | -6/Proximity Caves | Accompanied by 2 allies 12216 | -6/Proximity Caves | Spotted B-75 Beast 12242 | -6/Proximity Caves | Revealed the true nature of CR-A16's Pointy Stick 12245 | -6/Proximity Caves | Destroyed B-75 Beast 12562 | -6/Proximity Caves | Build established: Scavenger-Skirmisher 13151 | -6/Proximity Caves | Entered Factory 13151 | -6/Factory | Accompanied by 1 ally 13151 | -6/Factory | Evolved 2 slots: Propulsion x1, Utility x1 13152 | -6/Factory | Identified exit to Lower Caves 13156 | -6/Factory | Loaded intel: 194 non-interactive machine locations 13157 | -6/Factory | Loaded intel: 6 repair station locations 13158 | -6/Factory | Loaded intel: 4 garrison access locations 13449 | -6/Factory | Build established: Scavenger-Gunner 13644 | -6/Factory | Identified exit to Garrison 13644 | -6/Factory | Entered Garrison 13790 | -6/Garrison | Lost 4 allies 13943 | -6/Garrison | Triggered checkpoint 13968 | -6/Garrison | Garrison Relay disabled 14076 | -6/Garrison | Rescued a captive Derelict 14131 | -6/Garrison | Triggered checkpoint 14156 | -6/Garrison | Triggered checkpoint 14250 | -6/Garrison | Lost 5 parts (2n1u2w) 14390 | -6/Garrison | Discovered new exit (range 10) 14422 | -6/Garrison | Triggered checkpoint 14429 | -6/Garrison | Garrison Relay disabled 14449 | -6/Garrison | Identified exit to Factory 14492 | -6/Garrison | Build established: Scavenger-Mutant 14554 | -6/Garrison | Discovered exit to Factory (range 12) 14561 | -6/Garrison | Spotted B-75 Beast 14753 | -6/Garrison | Discovered exit to Factory (range 11) 14787 | -6/Garrison | Triggered checkpoint 14833 | -6/Garrison | Spotted Executioner 14835 | -6/Garrison | Spotted Executioner 14847 | -6/Garrison | Garrison Relay disabled 14905 | -6/Garrison | Destroyed Executioner 14911 | -6/Garrison | Destroyed Executioner 14927 | -6/Garrison | Found Prototype Processor 14927 | -6/Garrison | Identified Exp. Targeting Computer 14931 | -6/Garrison | Found Prototype Processor 14931 | -6/Garrison | Identified Exp. Core Analyzer 14940 | -6/Garrison | Lost 9 parts (1p5n1u2w) 15079 | -6/Garrison | Phase Generator disabled 15150 | -6/Garrison | Triggered checkpoint 15230 | -6/Garrison | Garrison Relay disabled 15283 | -6/Garrison | Entered Factory 15283 | -5/Factory | Evolved 2 slots: Power x1, Propulsion x1 15284 | -5/Factory | Identified exit to Upper Caves 15285 | -5/Factory | Loaded intel: 4 garrison access locations 15303 | -5/Factory | Lost 3 allies 15604 | -5/Factory | Build established: Scavenger-Gunner 15638 | -5/Factory | Fabricated Biometal Medium Treads (x2) 15706 | -5/Factory | Joined by Warlord Geek squad 15971 | -5/Factory | Identified exit to Garrison 15971 | -5/Factory | Entered Garrison 15997 | -5/Garrison | Triggered checkpoint 16035 | -5/Garrison | Garrison Relay disabled 16160 | -5/Garrison | Triggered checkpoint 16316 | -5/Garrison | Discovered new exit (range 12) 16357 | -5/Garrison | Triggered checkpoint 16649 | -5/Garrison | Lost 9 parts (1p3n2u3w) 16698 | -5/Garrison | Spotted B-86 Titan 16702 | -5/Garrison | Spotted B-75 Beast 16743 | -5/Garrison | Triggered checkpoint 16769 | -5/Garrison | Garrison Relay disabled 16796 | -5/Garrison | Discovered new exit (range 3) 16882 | -5/Garrison | Build established: Scavenger-Mutant 16903 | -5/Garrison | Triggered checkpoint 16956 | -5/Garrison | Garrison Relay disabled 17035 | -5/Garrison | Triggered checkpoint 17056 | -5/Garrison | Discovered new exit (range 13) 17464 | -5/Garrison | Entered Factory 17464 | -4/Factory | Evolved 2 slots: Utility x2 17515 | -4/Factory | Found Quantum Capacitor 17639 | -4/Factory | Build established: Scavenger-Gunner 17874 | -4/Factory | Fabricated L-61 Swordsman? 18134 | -4/Factory | Lost 3 allies 18199 | -4/Factory | Lost 10 parts (2p2n4u2w) 18214 | -4/Factory | First assault squad dispatched 18224 | -4/Factory | Destroyed 8 combat bots 18274 | -4/Factory | Specialist reinforcements revealed to be Infiltrators 18286 | -4/Factory | Found Prototype Device 18286 | -4/Factory | Identified Active Sensor Suite 18514 | -4/Factory | Discovered new exit (range 6) 18519 | -4/Factory | Identified exit to Extension 18546 | -4/Factory | Entered Extension 18567 | -4/Extension | Build established: Scavenger-Skirmisher 18796 | -4/Extension | First assault squad dispatched 18921 | -4/Extension | Lost 3 parts (2p1u) 18960 | -4/Extension | Destroyed 7 combat bots 19068 | -4/Extension | Lost 3 parts (1p1u1w) 19085 | -4/Extension | Spotted B-86 Titan 19121 | -4/Extension | Spotted B-86 Titan 19165 | -4/Extension | Core integrity fell below 50% 19191 | -4/Extension | Destroyed B-86 Titan 19228 | -4/Extension | Destroyed B-86 Titan 19231 | -4/Extension | Lost 8 parts (2p3n1u2w) 19338 | -4/Extension | Rescued a captive Derelict 19426 | -4/Extension | Rescued a captive Derelict 19456 | -4/Extension | Build established: Scavenger-Mutant 19511 | -4/Extension | Rescued a captive Derelict 19512 | -4/Extension | Rescued a captive Derelict 19565 | -4/Extension | Rescued a captive Derelict 19588 | -4/Extension | Rescued a captive Derelict 19600 | -4/Extension | Rescued a captive Derelict 19600 | -4/Extension | Rescued a captive Derelict 19793 | -4/Extension | Build established: Commander-Mutant 19952 | -4/Extension | Lost 4 allies 19973 | -4/Extension | Rescued a captive Derelict 19974 | -4/Extension | Rescued a captive Derelict 20040 | -4/Extension | Lost 4 allies 20044 | -4/Extension | Rescued a captive Derelict 20045 | -4/Extension | Rescued a captive Derelict 20171 | -4/Extension | Rescued a captive Derelict 20579 | -4/Extension | Lost 3 allies 20581 | -4/Extension | Discovered new exit (range 10) 20585 | -4/Extension | Discovered new exit (range 6) 20664 | -4/Extension | Entered Cetus 20664 | -4/Cetus | Accompanied by 17 allies 20675 | -4/Cetus | Spotted Cetus Guard 20676 | -4/Cetus | Spotted Cetus Guard 20677 | -4/Cetus | Allies destroyed Cetus Guard 20682 | -4/Cetus | Spotted Cetus Guard 20683 | -4/Cetus | Spotted Cetus Guard 20683 | -4/Cetus | Destroyed Cetus Guard 20686 | -4/Cetus | Allies destroyed Cetus Guard 20692 | -4/Cetus | Allies destroyed Cetus Guard 20805 | -4/Cetus | Discovered new exit (range 15) 20839 | -4/Cetus | Spotted Cetus Guard 20840 | -4/Cetus | Spotted Cetus Guard 20842 | -4/Cetus | Spotted Cetus Guard 20844 | -4/Cetus | Allies destroyed Cetus Guard 20845 | -4/Cetus | Spotted Cetus Guard 20852 | -4/Cetus | Allies destroyed Cetus Guard 20858 | -4/Cetus | Allies destroyed Cetus Guard 20863 | -4/Cetus | Allies destroyed Cetus Guard 20882 | -4/Cetus | Discovered new exit (range 15) 20897 | -4/Cetus | Met Revision 17 20994 | -4/Cetus | Entered Archives 20994 | -4/Archives | Accompanied by 14 allies 21202 | -4/Archives | Build established: Scavenger-Tank 21239 | -4/Archives | Met Zhirov 21245 | -4/Archives | Reinforcements dispatched to Archives 21246 | -4/Archives | Discovered new exit (range 14) 21290 | -4/Archives | Reinforcements dispatched to Archives 21291 | -4/Archives | Entered Hub_04(d) 21291 | -4/Hub_04(d) | Accompanied by 14 allies 21377 | -4/Hub_04(d) | Found Exp. Targeting Computer 21527 | -4/Hub_04(d) | Lost 6 allies 21549 | -4/Hub_04(d) | Discovered new exit (range 14) 21578 | -4/Hub_04(d) | Network Hub disabled 21580 | -4/Hub_04(d) | Spotted Lightning 21581 | -4/Hub_04(d) | Spotted Lightning 21582 | -4/Hub_04(d) | Spotted Lightning 21599 | -4/Hub_04(d) | Allies destroyed Lightning 21604 | -4/Hub_04(d) | Destroyed Lightning 21610 | -4/Hub_04(d) | System corruption reached 10% 21623 | -4/Hub_04(d) | Allies destroyed Lightning 21639 | -4/Hub_04(d) | Lost 6 allies 21653 | -4/Hub_04(d) | Found Prototype Energy Cannon 21653 | -4/Hub_04(d) | Identified EMDS 21659 | -4/Hub_04(d) | Lost 3 parts (1n1u1w) 21665 | -4/Hub_04(d) | Found Prototype Device 21665 | -4/Hub_04(d) | Identified Exp. EM Shield 21685 | -4/Hub_04(d) | Entered Research 21685 | -3/Research | Accompanied by 1 ally 21685 | -3/Research | Evolved 2 slots: Utility x2 21686 | -3/Research | Loaded intel: 24 terminal locations 21861 | -3/Research | Identified exit to Research 21885 | -3/Research | Revision forces began assault on 0b10 21928 | -3/Research | Met up with Revision 17++ 22095 | -3/Research | Fabricated S-43 Plague? 22106 | -3/Research | Discovered new exit (range 15) 22276 | -3/Research | Entered another Research area 22276 | -2/Research | Accompanied by 4 allies 22276 | -2/Research | Evolved 2 slots: Power x1, Utility x1 22507 | -2/Research | Found Prototype Launcher 22507 | -2/Research | Identified Enh. Gamma Bomb Array 22529 | -2/Research | Found Enh. Gamma Bomb Array 23094 | -2/Research | System corruption reached 10% 23572 | -2/Research | Discovered new exit (range 12) 23593 | -2/Research | Identified exit to Quarantine 23594 | -2/Research | Entered Quarantine 23627 | -2/Quarantine | Found Alien Artifact 23820 | -2/Quarantine | Found Quantum Capacitor 23832 | -2/Quarantine | Discovered new exit (range 10) 23857 | -2/Quarantine | Identified exit to Access 24256 | -2/Quarantine | Met incapacitated Sigix Warrior 24256 | -2/Quarantine | Lockdown squad dispatched 24264 | -2/Quarantine | Acquired the access code to the Sigix quarantine chamber 24267 | -2/Quarantine | Unlocked Sigix quarantine chamber 24336 | -2/Quarantine | Spotted Lightning 24338 | -2/Quarantine | Spotted Lightning 24343 | -2/Quarantine | Spotted Lightning 24355 | -2/Quarantine | Destroyed Lightning 24372 | -2/Quarantine | Destroyed Lightning 24376 | -2/Quarantine | Destroyed Lightning 24390 | -2/Quarantine | Found Sigix Containment Pod 24398 | -2/Quarantine | Found EMDS 24405 | -2/Quarantine | Found EMDS 24535 | -2/Quarantine | Scanned by Researcher 24558 | -2/Quarantine | Found Sigix Corpse 24566 | -2/Quarantine | Found Sigix Corpse 24794 | -2/Quarantine | Cryocooling Duct disabled 24809 | -2/Quarantine | Ambient heat levels rising (+20) 24809 | -2/Quarantine | Non-combat units ordered to evacuate 24865 | -2/Quarantine | Spotted Alpha 7 25076 | -2/Quarantine | Entered Access 25076 | -1/Access | Evolved 2 slots: Utility x2 26086 | -1/Access | Destroyed 7 combat bots 26455 | -1/Access | Build established: Scavenger-Mutant 26576 | -1/Access | First assault squad dispatched 26662 | -1/Access | Destroyed 9 combat bots 26705 | -1/Access | Garrison activated, responded to threat 26708 | -1/Access | System corruption reached 10% 26788 | -1/Access | Destroyed 7 combat bots 26830 | -1/Access | Discovered new exit (range 6) 26834 | -1/Access | Identified Subatomic Replicator 26834 | -1/Access | Used Subatomic Replicator to replicate Sigix Containment Pod 26848 | -1/Access | Identified exit to Surface 26849 | *** | Destroyed 0b10! Last Messages --------------- Sealed Barrier opened. 26825_ Hacking Drone unable to find more targets on Terminal. 26827_ Hacking Drone retrieved by Hacking Drone Bay (no repairs). 26830_ The Access Shell folds into the floor. 26830_ EXIT=FOUND 26833_ Dropped Sigix Containment Pod. 26834_ Identified Subatomic Replicator. 26834_ Replicated Sigix Containment Pod. 26835_ Sigix Containment Pod: "ZVPTKWGIWG MFDVFEKHCSXU TQI ON GBWQ JOYSTLHAMEL" 26835_ Sigix Containment Pod: "Q BVHXLF" 26836_ Acquired Sigix Containment Pod. 26840_ Dropped Arm. Heavy Treads+. 26841_ Identified Hds. Centrium Heavy Treads. 26841_ Faulty integration triggers system corruption (+2). 26842_ Acquired Arm. Heavy Treads+. 26848_ EXIT=IDENTIFIED: SURFACE Map ----- +----------------------------------------------------+ | ??????????# ??????????????????????????????????? | | ??????????? ??????????????????????????????????? | | ??????????? ??????????????????????????????????? | | ??????????? ??????????????????????????????????? | | ???????????# #??????????????????????????????????? | | ???????????# #??????????????????????????????????? | | ???????????# #??????????????????????????????????? | | ???????????# #??????????????????????????????????? | | ???????????# #??????????????????????????????????? | | ???????????# #??????????????????????????????????? | | ???????????# #######################????????????? | | ???????????+ ????????????? | | ???????????# k ????????????? | | ???????????# ####### ""#?????????????????? | | ???????????# #?????# ""#?????????????????? | | ???????????# #?????# ""#?????????????????? | | ???????????# #?????# T#?????????????????? | | ????######## #?????# ""#?????????????????? | | / [ #?????# ""#?????????????????? | | ????##/##### #????## ""##????????????????? | | ????# % ## #????# #????????????????? | | ????# ## #????## ##????????????????? | | ##### ?# #?????# #?????????????????? | | # ## #?????# #?????????????????? | | =##=###/#% #?????# #?????????????????? | | =+%!=%%%% #?????# @" #?????????????????? | | =#=%|%=%* #?????# "" #?????????????????? | | =#%#[[=##%##?????# #?????????????????? | | #####=##[=!""""?????# #?????????????????? | | ??###=##=! ""R"" ???# #?????????????????? | | ??#=%%=+= "" "" ???#""""""""""#?????????????????? | | ??#[%%=#[= ????????????????????????????????? | | ??#%*[[+% ?????????????????????????????????? | | ??# #%! ?????????????????????????????????? | | ??#% # ?????????????????????????????????? | | ??# # ! ????????????????????????????????? | | ??# # " ????????????????????????????????? | | ??# # """ ????????????? ??????????????????? | | ??# % # ""??????????????? ??????????????????? | | ??# # ??????????????? ??????????????????? | | ??# # ??????????????? ???????????????????? | | ??# #????????????????? #????????????????????? | | ??# #???????????????? #????????????????????? | | ### ################# #????????????????????? | | % +????????????????????? | | % #????????????????????? | | % ! #????????????????????? | | % =%| #????????????????????? | | #############################????????????????????? | | ??????????????????# #????????????????????????????? | +----------------------------------------------------+ Best States ------------- Heat Dissipation 159 Energy Generation 71 Energy Capacity 690 Matter Stores 300 Matter Capacity 300 Sight Range 22 Robot Scan Range 20 Terrain Scan Density 10 Jamming Range 14 Power Amplification 40 Base Temperature (-) 200 Armor Coverage 1200 Resistance: KI 20 Resistance: EM 75 Weapon Shielding 90 Evasion (%) 65 Targeting Accuracy 18 Core Analysis 8 Recoil Reduction 6 Kinecelleration 40 Offensive Hacking 10 Item Schematics ----------------- HERF Cannon | -7/Zion | Archive Adv. Heat Sink | -7/Zion | Archive Imp. Carbon-fiber Leg | -7/Zion | Archive Gauss Rifle | -7/Zion | Archive Nuclear Pulse Thruster | -7/Zion | Archive Mass Driver | -7/Zion | Archive Recalibrator | -7/Zion | Archive Flexi-carbon Leg | -7/Zion | Archive Energy Well | -7/Zion | Archive Lyr. Light Armor Plating | -7/Zion | Archive Imp. Hardlight Generator | -7/Zion | Archive Plasma Cannon | -7/Zion | Archive Arm. Medium Treads | -7/Zion | Archive Enh. Hardcell Cannon | -5/Factory | Downloaded Tiamat Missile Launcher | -2/Quarantine | Archive Imp. Diametric Drive | -2/Quarantine | Archive Robot Schematics ------------------ G-47 Trooper | -7/Zion | Archive B-48 Gladiator | -7/Zion | Archive L-41 Fighter | -7/Zion | Archive Fabricated ------------ Biometal Medium Treads | x2 | -5/Factory | Preloaded L-61 Swordsman | x3 | -4/Factory | Preloaded S-43 Plague | x4 | -3/Research | Preloaded Repaired ---------- Hpw. Shotgun | 28% | -8/Materials Hvy. Assault Cannon | 10% | -7/Factory | Broken Titanium Leg | 13% | -7/Factory Studied --------- Hpw. Shotgun | -8/Materials | Hacked Hvy. Assault Cannon | -7/Factory | Hacked Biometal Medium Treads | -2/Research | Hacked Arm. Medium Treads | -2/Research | Hacked Lgt. Quantum Reactor | -2/Research | Hacked Enh. Nova Cannon | -2/Research | Hacked Hvy. Disruptor Cannon | -2/Research | Hacked Antimatter Reactor | -2/Research | Hacked Arm. Heavy Treads | -2/Quarantine | Hacked Alien Tech Used ----------------- Subatomic Replicator Achievements -------------- King Drone Challenges ------------ None Game ------ Seed ColdCompanionFlamer Manual? 0 Play Time 03:10:41 Cumulative 2071.0 hours Start 2026.01.04 @ 20:05:19 End 2026.01.04 @ 23:28:41 Sessions 3 Manual Loads 0 Difficulty Rogue Special Mode None Game No. 1335 Rogue 1331 Adventurer 4 Explorer 0 Win Type 3 Total 285 Types 213/13/22/11/3/1/4/10/5/3 Lore% 98 Gallery% 96 Achievement% 88 Wizard Run 0 Options --------- Layout 2 ASCII 0 Keyboard 1 Movement Vi Keybinds 0 Fullscreen 0 Font 24/Terminus Map View 59x48 Zoom Use 0% Tactical HUD 1 Map Filters NONE Filters NONE Steam 1 RUN: a0799e95-7506-492b-8618-6d1d64f41e3b